bitfinex/quotes_ETHUSD_20250219
["timestamp","ask_amount","ask_price","bid_price","bid_amount"]
[1739937003817,0.7703,2700.5,2699.6,0.81122762]
[1739937004026,0.7703,2700.5,2699.7,0.25499797]
[1739937004332,0.7703,2700.5,2699.8,0.05864473]
[1739937004631,1.02216869,2700.8,2699.9,0.7545]
[1739937004836,0.8316,2700.8,2700.1,0.7545]
[1739937005042,1.16065356,2700.8,2700.1,0.7545]
[1739937005242,1.16065356,2700.8,2700.2,0.05830829]
[1739937005540,3.32905356,2700.8,2700.2,0.05830829]
[1739937007443,0.822,2701.0,2700.3,0.7576]
[1739937007645,0.28177958,2701.1,2700.5,0.7576]
[1739937007792,0.28177958,2701.1,2700.6,0.05767803]
[1739937007998,3.28177958,2701.1,2700.6,0.05767803]
[1739937008294,3.0,2701.1,2700.6,0.05767803]
[1739937008717,2.4589356,2701.2,2700.6,0.05767803]
[1739937009225,3.2176356,2702.3,2700.9,0.8312]
[1739937009528,3.2176356,2702.3,2701.1,0.8312]
[1739937009529,3.96050567,2702.3,2701.1,0.8312]
[1739937009827,5.4589356,2701.7,2701.2,0.05700622]
[1739937010027,0.62176356,2701.6,2701.2,0.05700622]
[1739937010213,0.62176356,2701.6,2701.1,1.1022]
[1739937010414,0.149604,2702.0,2701.3,0.8312]
[1739937010834,0.149604,2702.0,2701.4,0.0568411]
[1739937012003,0.149604,2702.0,2701.6,0.7752]
[1739937012334,0.149604,2702.0,2701.7,0.05659346]
[1739937012832,0.149604,2702.0,2701.8,0.7752]
[1739937013033,0.149604,2702.0,2701.9,0.0564284]
[1739937014731,0.149604,2702.0,2701.6,0.03701204]
[1739937015237,0.149604,2702.0,2701.7,0.05509521]
[1739937015592,0.149604,2702.0,2701.6,0.55]
[1739937015796,0.149604,2702.0,2701.8,0.05501268]
[1739937016034,0.149604,2702.0,2701.7,0.05509521]
[1739937016333,0.149604,2702.0,2701.8,0.05501268]
[1739937016841,0.149604,2702.0,2701.6,0.55]
[1739937017342,0.149604,2702.0,2701.7,0.05501307]
[1739937019702,0.149604,2702.0,2701.5,0.8289]
[1739937020035,0.149604,2702.0,2701.8,0.05493054]
[1739937020233,0.149604,2702.0,2701.5,0.8289]
[1739937020433,0.149604,2702.0,2701.9,0.05484801]
[1739937020636,0.149604,2702.0,2701.5,0.8289]
[1739937021343,0.149604,2702.0,2701.6,0.05509561]
[1739937025959,0.43315229,2702.0,2701.6,0.05509561]
[1739937032161,0.43315229,2702.0,2701.6,0.09564199]
[1739937032561,0.149604,2702.0,2701.6,0.09564199]
[1739937034284,0.149604,2702.0,2701.6,0.1326531]
[1739937034491,0.149604,2702.0,2701.6,0.09564199]
[1739937035074,3.03200363,2702.0,2701.6,0.09564199]
[1739937035275,3.2237356,2701.7,2701.6,0.25409552]
[1739937035467,6.2237356,2701.7,2701.6,0.25409552]
[1739937036871,3.0,2701.6,2700.7,0.25409552]
[1739937037078,9.30237356,2701.6,2700.7,0.25409552]
[1739937037393,9.30237356,2701.6,2700.8,0.09633421]
[1739937037588,5.4589356,2701.4,2700.8,0.09633421]
[1739937038369,0.7807,2701.3,2700.9,0.25409552]
[1739937038758,2.4589356,2701.1,2701.0,0.09616599]
[1739937038959,6.99892916,2701.1,2701.0,0.09616599]
[1739937039158,6.99892916,2701.1,2700.9,0.25409552]
[1739937039159,3.7561,2701.0,2700.9,0.25409552]
[1739937039378,9.1361,2701.0,2700.9,0.25409552]
[1739937039769,8.38,2701.0,2700.0,0.7877]
[1739937039972,2.4589356,2700.7,2700.0,0.7877]
[1739937040168,2.4589356,2700.7,2700.1,0.09692317]
[1739937040371,2.4589356,2700.7,2700.1,0.84527577]
[1739937040585,0.7561,2700.9,2700.1,0.84527577]
[1739937040962,0.7561,2700.9,2700.2,0.29170207]
[1739937041363,3.0,2700.8,2700.3,0.09742443]
[1739937041772,3.0,2700.8,2700.2,0.25466922]
[1739937041990,2.4589356,2700.6,2700.4,0.09734029]
[1739937042389,2.4589356,2700.6,2700.1,0.7483526]
[1739937042390,3.8135,2700.5,2700.1,0.7483526]
[1739937042791,0.8135,2700.5,2700.2,0.09750858]
[1739937043783,2.4589356,2700.6,2700.2,0.09750858]
[1739937043982,5.38,2700.7,2700.2,0.09750858]
[1739937044173,5.38,2700.7,2700.3,0.8153]
[1739937046979,0.8135,2700.8,2700.3,0.8153]
[1739937047366,0.8135,2700.8,2700.4,0.09734029]
[1739937047679,2.4589356,2700.9,2700.3,0.8153]
[1739937047877,2.4589356,2700.9,2700.4,0.09734029]
[1739937048078,2.4589356,2700.9,2700.3,0.8153]
[1739937048404,2.4589356,2700.9,2700.4,0.09734029]
[1739937048709,2.4589356,2700.9,2700.3,0.8153]
[1739937048913,3.02144969,2700.9,2700.3,0.8153]
[1739937049070,3.02144969,2700.9,2700.4,0.09734029]
[1739937049296,3.02144969,2700.9,2700.3,0.8153]
[1739937049496,2.4589356,2700.9,2700.4,0.09734029]
[1739937049829,2.4589356,2700.9,2700.3,0.8153]
[1739937050243,2.4589356,2700.9,2700.4,0.09819785]
[1739937050595,2.4589356,2700.9,2700.1,1.5208526]
[1739937051028,2.4589356,2700.9,2700.2,0.09838378]
[1739937051626,3.11520151,2700.9,2700.2,0.09838378]
[1739937051994,2.4589356,2700.6,2700.2,0.09838378]
[1739937053436,9.1585,2700.8,2700.2,0.09838378]
[1739937056440,2.4589356,2700.6,2700.2,0.09838378]
[1739937059145,2.4589356,2700.6,2700.1,1.5208526]
[1739937059341,2.4589356,2700.6,2700.3,0.09854057]
[1739937059511,2.4589356,2700.6,2700.1,1.5208526]
[1739937059712,2.4589356,2700.6,2700.2,0.09862472]
[1739937059924,2.4589356,2700.6,2700.1,1.5208526]
[1739937060126,3.62067916,2700.6,2700.1,1.5208526]
[1739937060326,3.62067916,2700.6,2700.2,0.09862472]
[1739937060531,3.62067916,2700.6,2700.1,1.5208526]
[1739937060706,3.62067916,2700.6,2700.3,0.09854057]
[1739937060911,3.62067916,2700.6,2700.1,1.5208526]
[1739937061246,3.62067916,2700.6,2700.2,0.09862472]
[1739937061544,3.62067916,2700.6,2700.1,1.5208526]
[1739937061747,2.4589356,2700.6,2700.1,1.5208526]
[1739937062047,2.4589356,2700.6,2700.2,0.09862472]
[1739937062347,2.4589356,2700.6,2700.1,1.5208526]
[1739937062842,2.4589356,2700.6,2700.2,0.09862472]
[1739937063214,2.4589356,2700.6,2700.1,1.5208526]
[1739937063569,2.4589356,2700.6,2700.2,0.09862472]
[1739937063767,2.4589356,2700.6,2700.1,1.5208526]
[1739937063968,2.4589356,2700.6,2700.3,0.09854057]
[1739937064322,2.4589356,2700.6,2700.1,1.5208526]
[1739937064631,2.4589356,2700.6,2700.4,0.09845643]
[1739937064945,2.99798908,2700.6,2700.1,1.5208526]
[1739937065145,2.4589356,2700.6,2700.5,0.09837229]
[1739937065462,2.4589356,2700.6,2700.1,1.5208526]
[1739937065975,2.4589356,2700.6,2700.2,0.09862472]
[1739937066273,2.4589356,2700.6,2700.1,1.5208526]
[1739937066576,2.4589356,2700.6,2700.2,0.09862472]
[1739937066778,2.4589356,2700.6,2700.1,1.5208526]
[1739937066947,2.4589356,2700.6,2700.3,0.09854057]
[1739937067269,2.4589356,2700.6,2700.2,0.25555673]
[1739937068203,2.4589356,2700.6,2700.3,0.25555673]
[1739937068794,6.1585,2700.8,2700.3,0.25555673]
[1739937069002,3.0,2700.7,2700.3,0.25555673]
[1739937069594,3.0,2700.7,2700.4,0.25555673]
[1739937069962,5.38,2700.8,2700.4,0.25555673]
[1739937070161,5.38,2700.8,2700.5,0.8229]
[1739937070612,3.2322356,2701.2,2700.6,0.09834895]
[1739937070809,3.0,2701.1,2700.5,0.8229]
[1739937071099,3.0,2701.1,2700.7,0.09826483]
[1739937071293,3.0,2701.1,2700.5,0.8229]
[1739937071495,3.0,2701.1,2700.6,0.09834895]
[1739937072002,3.0,2701.1,2700.5,0.8229]
[1739937072174,9.75894902,2701.2,2700.7,0.09826483]
[1739937072374,9.75894902,2701.2,2700.6,0.25573653]
[1739937072599,9.75894902,2701.2,2700.8,0.09818071]
[1739937072765,9.75894902,2701.2,2700.7,0.09826483]
[1739937072966,9.75894902,2701.2,2700.6,0.25573653]
[1739937073167,9.75894902,2701.2,2700.8,0.09818071]
[1739937073367,9.75894902,2701.2,2700.7,0.09826483]
[1739937073580,9.75894902,2701.2,2700.6,0.25573653]
[1739937073797,9.75894902,2701.2,2700.8,0.09818071]
[1739937073966,9.75894902,2701.2,2700.5,0.8229]
[1739937074497,9.75894902,2701.2,2700.6,0.09834895]
[1739937074699,9.47345916,2701.2,2700.6,0.09834895]
[1739937075470,0.94734592,2701.1,2700.6,0.09834895]
[1739937077895,8.6122356,2701.2,2700.6,0.09834895]
[1739937078300,8.6122356,2701.2,2700.5,0.8229]
[1739937078502,3.0,2701.1,2700.5,0.8229]
[1739937078703,3.0,2701.1,2700.6,0.09806095]
[1739937079108,3.0,2701.1,2700.5,0.8229]
[1739937079501,3.0,2701.1,2700.6,0.09806095]
[1739937079696,3.0,2701.1,2700.5,0.8229]
[1739937079697,4.18845416,2701.1,2700.5,0.8229]
[1739937080086,4.18845416,2701.1,2700.6,0.09801981]
[1739937080521,4.18845416,2701.1,2700.5,0.8229]
[1739937081024,4.18845416,2701.1,2700.6,0.09801981]
[1739937081225,4.18845416,2701.1,2700.5,0.8229]
[1739937081397,4.18845416,2701.1,2700.7,0.09794744]
[1739937081720,1.28006898,2701.0,2700.5,0.8229]
[1739937081917,3.0,2701.1,2700.5,0.8229]
[1739937082223,3.0,2701.1,2700.6,0.09803744]
[1739937082526,3.0,2701.1,2700.5,0.8229]
[1739937082822,3.0,2701.1,2700.6,0.09803744]
[1739937083029,3.0,2701.1,2700.5,0.8229]
[1739937083227,3.0,2701.1,2700.7,0.09795332]
[1739937083388,4.18845416,2701.1,2700.5,0.8229]
[1739937083927,2.4589356,2700.9,2700.6,0.09803744]
[1739937084429,2.4589356,2700.9,2700.2,0.7608]
[1739937084631,2.4589356,2700.9,2700.7,0.09794744]
[1739937084825,0.7877,2700.8,2700.2,0.7608]
[1739937085390,0.7877,2700.8,2700.3,0.25554279]
[1739937086426,5.4589356,2700.9,2700.3,0.25554279]
[1739937086592,6.50502458,2700.9,2700.3,0.25554279]
[1739937086994,6.50502458,2700.9,2700.2,0.7608]
[1739937086995,6.50502458,2700.9,2700.4,0.25554279]
[1739937088329,6.50502458,2700.9,2700.3,0.25554279]
[1739937088500,11.88502458,2700.9,2700.3,0.25554279]
[1739937090035,11.88502458,2700.9,2700.4,0.25554279]
[1739937090237,10.8389356,2700.9,2700.5,0.813]
[1739937091102,7.8389356,2700.9,2700.5,0.813]
[1739937092856,3.0,2700.8,2700.2,0.7552]
[1739937093351,3.0,2700.8,2700.3,0.09847793]
[1739937093498,4.08389356,2700.8,2700.3,0.09847793]
[1739937093702,4.08389356,2700.8,2700.2,0.7552]
[1739937094103,4.08389356,2700.8,2700.3,0.09847205]
[1739937094706,4.08389356,2700.8,2700.2,0.7552]
[1739937095208,3.0,2700.8,2700.3,0.35441736]
[1739937095406,7.8389356,2700.9,2700.4,0.8277]
[1739937095644,5.38,2700.9,2700.4,0.8277]
[1739937096553,5.38,2700.9,2700.5,0.25594531]
[1739937097617,3.0,2700.8,2700.5,0.25594531]
[1739937097812,4.89379356,2700.8,2700.5,0.25594531]
[1739937098238,4.89379356,2700.8,2700.6,0.25594531]
[1739937099717,4.89379356,2700.8,2700.3,0.25594531]
[1739937101053,4.89379356,2700.8,2700.4,0.25594531]
[1739937101890,4.08389356,2700.8,2700.4,0.25594531]
[1739937102045,3.0,2700.8,2700.4,0.25594531]
[1739937102343,3.0,2700.8,2700.5,0.25594531]
[1739937103756,3.0,2700.8,2700.2,0.8277]
[1739937104070,3.0,2700.8,2700.3,0.09841326]
[1739937104426,3.0,2700.8,2700.2,0.8277]
[1739937104770,3.0,2700.8,2700.4,0.09832912]
[1739937104941,3.0,2700.8,2700.3,0.09841326]
[1739937105141,3.0,2700.8,2700.3,0.2555916]
[1739937105543,3.0,2700.8,2700.4,0.09832912]
[1739937105771,3.0,2700.8,2700.3,0.2555916]
[1739937106309,3.0,2700.8,2700.5,0.2555916]
[1739937106749,3.0,2700.8,2700.6,0.09816085]
[1739937107151,3.0,2700.8,2700.5,0.2555916]
[1739937107351,3.62248356,2700.8,2700.6,0.09816085]
[1739937107885,3.62248356,2700.8,2700.2,0.8277]
[1739937108091,3.62248356,2700.8,2700.7,0.09805322]
[1739937108288,3.62248356,2700.8,2700.2,0.8277]
[1739937108489,5.4589356,2700.9,2700.2,0.8277]
[1739937108789,5.4589356,2700.9,2700.3,0.09838975]
[1739937108989,5.4589356,2700.9,2700.3,0.35409349]
[1739937110796,5.4589356,2700.9,2700.4,0.25570374]
[1739937111154,5.4589356,2700.9,2700.4,0.35406225]
[1739937111899,5.4589356,2700.9,2700.5,0.25570374]
[1739937112279,5.4589356,2700.9,2700.6,0.09819024]
[1739937112486,5.4589356,2700.9,2700.5,0.25570374]
[1739937112869,5.4589356,2700.9,2700.6,0.09819024]
[1739937113069,5.4589356,2700.9,2700.5,0.25570374]
[1739937113279,5.4589356,2700.9,2700.7,0.09810611]
[1739937113581,5.4589356,2700.9,2700.2,0.8277]
[1739937113767,5.4589356,2700.9,2700.3,0.09844265]
[1739937115006,5.4589356,2700.9,2700.4,0.25574473]
[1739937115193,5.4589356,2700.9,2700.4,0.35410324]
[1739937116410,5.4589356,2700.9,2700.5,0.25574473]
[1739937116570,5.4589356,2700.9,2700.5,0.3540191]
[1739937117965,5.4589356,2700.9,2700.5,0.09827437]
[1739937118191,5.4589356,2700.9,2700.2,0.8277]
[1739937118398,5.4589356,2700.9,2700.3,0.09844265]
[1739937118603,1.22873658,2700.6,2700.3,0.09844265]
[1739937119503,1.22873658,2700.6,2700.4,0.2557524]
[1739937119807,1.22873658,2700.6,2700.5,0.09827437]
[1739937120918,1.22873658,2700.6,2700.5,0.35402677]
[1739937121805,1.22873658,2700.9,2700.6,0.824]
[1739937122174,1.22873658,2701.1,2700.6,0.824]
[1739937122370,1.22873658,2700.9,2700.7,0.09796505]
[1739937123786,1.22873658,2700.9,2700.8,0.2557524]
[1739937124713,0.8064,2701.2,2700.8,0.2557524]
[1739937124714,3.0,2701.1,2700.8,0.2557524]
[1739937125408,0.7923,2701.4,2700.6,0.824]
[1739937125616,3.0,2701.3,2700.6,0.824]
[1739937125907,2.45687581,2701.2,2700.7,0.09786516]
[1739937127375,3.38179339,2701.2,2700.7,0.09786516]
[1739937127882,0.8311,2701.1,2700.7,0.09786516]
[1739937129309,2.45687581,2701.2,2700.7,0.09786516]
[1739937129882,2.45687581,2701.2,2700.8,0.25530846]
[1739937130082,2.45687581,2701.2,2700.8,0.3530895]
[1739937130278,2.45687581,2701.2,2700.8,0.25530846]
[1739937131313,2.45687581,2701.2,2700.6,0.824]
[1739937131714,3.21107581,2700.9,2700.7,0.09781815]
[1739937131926,3.0,2700.8,2700.7,0.09781815]
[1739937132213,3.0,2700.8,2700.3,0.7664]
[1739937132710,2.45687581,2700.6,2700.3,0.7664]
[1739937132875,2.45687581,2700.6,2700.4,0.25536474]
[1739937134585,3.0,2700.8,2700.5,0.0982979]
[1739937134781,3.62110758,2700.8,2700.1,1.50621665]
[1739937134981,3.62110758,2700.8,2700.2,0.09855033]
[1739937138105,3.90644607,2700.8,2700.2,0.09855033]
[1739937138819,2.45687581,2700.6,2700.2,0.09855033]
[1739937139637,0.7809,2700.5,2700.2,0.09855033]
[1739937139802,1.10467758,2700.5,2700.2,0.09855033]
[1739937140714,0.32377758,2700.5,2700.2,0.09855033]
[1739937140916,5.45687581,2700.6,2700.2,0.09855033]
[1739937142241,5.46885791,2700.6,2700.2,0.09855033]
[1739937145054,0.0119821,2700.6,2700.3,0.7711]
[1739937145264,0.0119821,2700.6,2700.3,0.86973076]
[1739937145460,0.0119821,2700.6,2700.3,0.7711]
[1739937146027,0.0119821,2700.6,2700.4,0.09854661]
[1739937146343,0.0119821,2700.6,2700.5,0.8267]
[1739937146748,0.0119821,2700.6,2700.5,0.92516248]
[1739937146917,0.0119821,2700.6,2700.5,1.17936137]
[1739937149759,0.0119821,2700.6,2700.5,1.93668796]
[1739937160670,0.0119821,2700.6,2700.5,0.35266137]
[1739937161037,3.8052821,2700.6,2700.5,0.25419889]
[1739937162049,3.8052821,2700.6,2699.8,0.98898034]
[1739937162469,3.8052821,2700.6,2699.9,0.09456908]
[1739937162766,5.45638566,2700.4,2699.9,0.09456908]
[1739937162975,6.08255244,2700.4,2699.9,0.09456908]
[1739937163174,0.7933,2700.0,2699.9,0.09456908]
[1739937163341,0.8052821,2700.0,2699.9,0.09456908]
[1739937163698,3.8052821,2700.0,2699.8,0.25419889]
[1739937163968,3.8052821,2700.0,2699.1,1.0445]
[1739937164148,0.62616678,2699.9,2699.1,1.0445]
[1739937164350,0.63814888,2699.9,2699.2,0.09515843]
[1739937164552,0.63814888,2699.9,2699.2,0.83328114]
[1739937164874,5.45638566,2699.8,2699.2,0.09515843]
[1739937165088,0.7564,2699.7,2699.2,0.09515843]
[1739937165295,0.32127857,2699.6,2698.9,0.7791]
[1739937165455,3.7683821,2699.7,2698.9,0.7791]
[1739937165641,3.7683821,2699.7,2699.0,0.09532688]
[1739937165852,3.7683821,2699.7,2699.0,0.83938962]
[1739937166260,3.7683821,2699.7,2699.0,0.09532688]
[1739937167267,2.45638566,2699.5,2699.0,0.09532688]
[1739937167471,3.09084454,2699.5,2698.6,1.0481]
[1739937167786,0.0425,2699.4,2699.1,0.09524265]
[1739937167983,0.0425,2699.4,2698.6,1.52145498]
[1739937167984,2.45638566,2699.2,2698.6,1.52145498]
[1739937168181,2.45638566,2699.2,2698.5,0.269]
[1739937168960,3.24427423,2699.2,2698.5,0.98232266]
[1739937169900,3.24427423,2699.2,2698.5,0.72871153]
[1739937170963,0.8254,2699.1,2698.5,0.72871153]
[1739937171799,3.24427423,2699.2,2698.0,5.629]
[1739937171800,2.45638566,2698.9,2698.2,0.73770247]
[1739937171962,0.32817857,2698.8,2698.2,0.73770247]
[1739937172365,0.8254,2699.0,2698.2,0.73770247]
[1739937173389,0.8254,2699.0,2698.4,0.7908]
[1739937176064,0.8036,2699.2,2698.4,0.7908]
[1739937176601,0.8036,2699.2,2698.6,0.73362931]
[1739937176805,3.25998566,2699.2,2698.6,0.73362931]
[1739937177304,3.25998566,2699.2,2698.1,0.8033]
[1739937177305,0.8036,2699.1,2698.1,0.8033]
[1739937177472,0.8036,2698.8,2698.1,0.8033]
[1739937178508,0.8036,2698.8,2698.3,0.74254611]
[1739937179066,0.8036,2698.8,2698.4,0.09490434]
[1739937179490,1.12959857,2698.8,2698.4,0.09490434]
[1739937179688,1.12959857,2698.8,2698.1,0.8033]
[1739937180001,0.8036,2698.8,2698.5,0.09482008]
[1739937180214,0.8036,2698.8,2698.2,0.78970874]
[1739937180668,0.8036,2698.8,2698.3,0.09531672]
[1739937180886,0.8036,2698.8,2698.2,0.75265181]
[1739937181085,0.8036,2698.8,2698.4,0.09523245]
[1739937181414,0.7813,2699.0,2698.2,0.75265181]
[1739937181616,0.7813,2699.0,2698.5,0.09514819]
[1739937181802,0.7813,2699.0,2698.4,0.7931]
[1739937182004,0.7813,2699.3,2698.6,0.09505807]
[1739937182184,0.7813,2699.3,2698.8,0.7931]
[1739937182739,0.7813,2699.3,2698.9,0.09470574]
[1739937183521,0.0119821,2699.5,2698.9,0.09470574]
[1739937184017,0.7749,2699.4,2698.9,0.09470574]
[1739937184717,0.7749,2699.4,2698.9,0.82865342]
[1739937185717,0.0119821,2699.5,2698.9,0.86570052]
[1739937185927,0.0119821,2699.5,2698.9,0.82865342]
[1739937187826,0.7966,2699.4,2698.9,0.82865342]
[1739937189127,0.0119821,2699.5,2699.0,0.83]
[1739937189328,0.7966,2699.4,2699.0,0.09461565]
[1739937189693,0.0119821,2699.5,2699.0,0.09461565]
[1739937189993,0.0119821,2699.5,2699.1,0.83]
[1739937190403,0.0119821,2699.5,2699.2,0.09444721]
[1739937192226,0.0119821,2699.5,2699.2,0.34867521]
[1739937194430,0.39284031,2699.5,2699.2,0.34867521]
[1739937194603,0.39284031,2699.5,2699.2,0.09444721]
[1739937194799,0.39284031,2699.5,2698.7,0.83]
[1739937195125,0.0119821,2699.5,2698.7,0.83]
[1739937197693,0.0119821,2699.5,2698.8,0.0385161]
[1739937198412,0.0119821,2699.5,2698.9,0.72745238]
[1739937198741,0.0119821,2699.5,2699.0,0.05376079]
[1739937203512,0.0119821,2699.5,2699.1,0.7721]
[1739937203715,0.0119821,2699.5,2699.1,0.86284051]
[1739937204824,0.0119821,2699.5,2699.1,0.82579414]
[1739937206945,0.0119821,2699.5,2699.2,0.25324868]
[1739937207245,0.0119821,2699.5,2699.3,0.7998]
[1739937207421,0.0119821,2699.5,2699.4,0.05319555]
[1739937208716,0.0119821,2699.5,2699.4,0.30644423]
[1739937209619,0.8030821,2699.5,2699.4,0.30644423]
[1739937209824,1.18339031,2699.5,2699.4,0.30644423]
[1739937210024,0.8030821,2699.5,2699.4,0.30644423]
[1739937210549,3.25946776,2699.5,2699.4,0.05319555]
[1739937210710,3.25946776,2699.5,2699.1,0.25324868]
[1739937210912,6.25946776,2699.5,2699.4,0.05319555]
[1739937211138,6.25946776,2699.5,2699.1,0.25324868]
[1739937211449,4.18541454,2699.5,2699.0,5.36]
[1739937211611,3.25946776,2699.5,2699.0,5.36]
[1739937213245,3.25946776,2699.5,2698.7,0.75338368]
[1739937213439,3.0,2699.4,2698.7,0.75338368]
[1739937214312,3.0,2699.4,2698.8,0.2535862]
[1739937216717,3.0,2699.4,2698.9,0.2535862]
[1739937217451,3.25946776,2699.5,2699.0,0.2535862]
[1739937217650,0.35354385,2699.4,2699.0,0.2535862]
[1739937218759,0.8177,2699.1,2698.4,0.8241]
[1739937218961,0.8177,2699.1,2698.4,1.55950175]
[1739937220147,0.8177,2699.1,2698.5,0.25364533]
[1739937221452,0.8177,2699.1,2698.4,1.55950175]
[1739937221753,0.8177,2699.1,2698.6,0.25345922]
[1739937222953,0.8177,2699.1,2698.7,0.25345922]
[1739937223919,0.8177,2699.1,2698.8,0.05388827]
[1739937224119,0.8177,2699.1,2698.5,0.25345922]
[1739937224321,0.8177,2699.1,2698.9,0.05380403]
[1739937224650,0.8177,2699.1,2698.5,0.25345922]
[1739937225053,0.8177,2699.1,2698.6,0.05405676]
[1739937225424,0.8177,2699.1,2698.6,0.30751598]
[1739937226719,0.8177,2699.1,2698.6,0.05405676]
[1739937228219,0.8177,2699.1,2698.6,0.30751598]
[1739937229648,0.8177,2699.1,2698.6,0.05405676]
[1739937230938,0.8177,2699.1,2698.6,0.30751598]
[1739937232536,0.8177,2699.1,2698.6,0.05405676]
[1739937233753,0.8177,2699.1,2698.6,0.30751598]
[1739937235160,0.8177,2699.1,2698.6,0.05405676]
[1739937236867,0.8177,2699.1,2698.7,0.25345922]
[1739937237165,0.8177,2699.1,2698.8,0.05458529]
[1739937237368,0.8177,2699.1,2698.7,0.25345922]
[1739937237536,0.8177,2699.1,2698.9,0.05450105]
[1739937237740,0.8177,2699.1,2698.7,0.25345922]
[1739937237939,0.8177,2699.1,2699.0,0.05441682]
[1739937238276,0.8177,2699.1,2698.4,1.55950175]
[1739937238648,0.8177,2699.1,2698.5,0.0547736]
[1739937238860,0.32740857,2699.0,2698.5,0.0547736]
[1739937239231,3.24598566,2698.9,2698.5,0.0547736]
[1739937239468,3.24598566,2698.6,2698.0,5.36]
[1739937239669,0.7896,2698.5,2698.1,0.05512826]
[1739937240035,0.7896,2698.5,2697.7,0.8217]
[1739937240554,0.778,2698.8,2698.1,0.8062]
[1739937240961,0.778,2698.8,2698.2,0.05529595]
[1739937241163,1.10143857,2698.8,2698.2,0.05529595]
[1739937241472,1.10143857,2698.8,2698.3,0.25362273]
[1739937242035,0.778,2698.8,2698.4,0.05503364]
[1739937242780,0.778,2698.8,2698.5,0.25362273]
[1739937242938,0.778,2698.8,2698.5,0.30857211]
[1739937243139,0.778,2699.0,2698.5,1.11477211]
[1739937243776,0.778,2699.0,2698.6,0.25362273]
[1739937243977,0.778,2699.0,2698.6,0.30848786]
[1739937244842,1.66755374,2699.0,2698.6,0.30848786]
[1739937245660,1.66755374,2699.0,2698.6,0.05486513]
[1739937245858,1.66755374,2699.0,2698.3,0.8322]
[1739937246071,0.778,2699.0,2698.4,0.05503364]
[1739937247246,3.778,2699.0,2698.5,0.25340232]
[1739937247466,3.778,2699.0,2698.6,0.05477723]
[1739937248703,3.778,2699.0,2698.3,0.8322]
[1739937248985,3.778,2699.0,2698.7,0.05469298]
[1739937249299,4.42955374,2699.0,2698.3,0.8322]
[1739937249610,4.42955374,2699.0,2698.8,0.05460874]
[1739937249788,1.42955374,2699.0,2698.3,0.8322]
[1739937250151,0.778,2699.0,2698.4,0.05494575]
[1739937251271,0.778,2699.0,2698.5,0.25345943]
[1739937251491,0.778,2699.0,2698.5,0.30850254]
[1739937252497,3.8173,2699.2,2698.6,0.8291]
[1739937252711,5.01802295,2699.2,2698.6,0.88398855]
[1739937252854,5.01802295,2699.2,2698.6,1.13744798]
[1739937253054,0.8173,2699.2,2698.6,1.13744798]
[1739937253353,0.8173,2699.2,2698.7,0.73982425]
[1739937253547,3.8173,2699.2,2698.7,0.79460511]
[1739937253747,0.29582537,2699.5,2698.8,0.8291]
[1739937253980,0.29582537,2699.5,2698.8,0.88379662]
[1739937254362,0.29582537,2699.5,2698.8,1.13725605]
[1739937255686,0.29582537,2699.5,2698.9,0.25345943]
[1739937255901,0.29582537,2699.5,2699.0,0.05452815]
[1739937257307,0.29582537,2699.5,2698.8,0.8291]
[1739937257615,0.29582537,2699.5,2699.1,0.05444392]
[1739937257816,0.29582537,2699.5,2698.8,0.8291]
[1739937258016,0.0119821,2699.5,2698.9,0.03705101]
[1739937258216,0.0119821,2699.5,2698.9,0.09166339]
[1739937258370,0.0119821,2699.5,2699.0,0.7896]
[1739937258707,0.0119821,2699.5,2699.0,1.09718024]
[1739937259789,0.0119821,2699.5,2699.1,0.25305209]
[1739937259998,0.0119821,2699.5,2699.1,0.30749601]
[1739937261805,0.0119821,2699.5,2699.1,0.05444392]
[1739937262673,0.0119821,2699.5,2698.7,0.73982425]
[1739937264092,0.0119821,2699.5,2698.8,2.9781804]
[1739937264306,0.0119821,2699.5,2698.8,3.02532237]
[1739937264994,0.0119821,2699.5,2698.9,3.70512]
[1739937265201,0.0119821,2699.5,2698.9,3.75603035]
[1739937265397,0.0119821,2699.5,2698.9,0.05091035]
[1739937265597,0.0119821,2699.5,2699.0,0.7947]
[1739937265799,0.0119821,2699.5,2699.0,0.84550314]
[1739937266009,0.0119821,2699.5,2699.4,0.7947]
[1739937266379,0.0119821,2699.5,2699.4,0.84507441]
[1739937270618,0.0119821,2699.5,2699.4,0.05037441]
[1739937279601,0.0119821,2699.5,2699.4,0.30387834]
[1739937280323,0.0119821,2699.5,2699.4,0.57947456]
[1739937287630,0.0119821,2699.5,2699.4,1.38067456]
[1739937301960,0.0119821,2699.5,2699.4,5.08519456]
[1739937302854,0.0119821,2699.5,2699.4,5.63519456]
[1739937303157,0.0119821,2699.5,2699.4,13.99519456]
[1739937307465,0.0119821,2699.5,2699.4,14.09519456]
[1739937308166,0.0119821,2699.5,2699.4,14.29519456]
[1739937308340,0.0119821,2699.5,2699.4,27.01419456]
[1739937309159,0.7964,2701.0,2699.8,0.1]
[1739937309365,0.7964,2701.0,2700.3,0.8114]
[1739937309762,0.7964,2701.0,2700.4,0.05218464]
[1739937309969,0.7964,2701.0,2700.4,5.41218464]
[1739937310458,0.7964,2701.0,2700.5,0.25350393]
[1739937310649,0.7964,2701.0,2700.5,0.30557078]
[1739937311065,0.7964,2701.0,2700.5,0.581167]
[1739937311474,0.815,2701.5,2700.6,0.7555]
[1739937311768,1.16118808,2701.5,2700.7,0.269]
[1739937311970,0.815,2701.5,2700.7,0.32628094]
[1739937312561,0.815,2701.5,2700.7,0.57978487]
[1739937313137,0.815,2701.5,2700.8,0.7555]
[1739937313475,0.815,2701.5,2700.9,0.05701924]
[1739937313675,0.815,2701.5,2700.9,0.31052317]
[1739937314090,0.815,2701.8,2701.0,0.7555]
[1739937314243,1.4345,2701.8,2701.0,6.1155]
[1739937314578,0.815,2701.8,2701.3,0.73340882]
[1739937314938,0.815,2701.8,2701.4,0.05593762]
[1739937317964,0.815,2701.8,2701.4,0.87623762]
[1739937318282,0.8149,2702.0,2701.4,0.87623762]
[1739937319380,0.005,2873.4,2701.4,9.93795762]
[1739937319381,0.9628973,2702.2,2701.4,9.93795762]
[1739937319589,0.9628973,2702.2,2701.5,0.269]
[1739937319757,0.9628973,2702.2,2701.6,0.8146]
[1739937319956,0.9628973,2702.2,2701.6,6.23559797]
[1739937320490,0.1480973,2702.2,2701.7,0.8146]
[1739937321181,0.1480973,2702.2,2701.9,0.75775345]
[1739937321483,0.1480973,2702.2,2702.0,0.7919]